lending/lending_fUSD_20240112
["ID","MTS","AMOUNT","RATE_DAILY","PERIOD"]
[311375588,1705069909324,-1749.07,0.00025595,2]
[311375589,1705069909334,-8501.24,0.00025595,2]
[311375590,1705069909343,-550.62,0.00025595,2]
[311375591,1705069909352,-500.0,0.00025595,2]
[311375592,1705069909361,-563.63,0.00025595,2]
[311375593,1705069909370,-2396.88,0.00025595,2]
[311375594,1705069909379,-947.32,0.00025595,2]
[311375595,1705069909388,-3427.97,0.00025595,2]
[311375596,1705069909397,-3063.47,0.00025595,2]
[311375597,1705069909407,-2388.38,0.00025595,2]
[311375598,1705069909416,-1809.41,0.00025595,2]
[311375599,1705069909425,-313.94,0.00025596,2]
[311375600,1705069909434,-500.0,0.00025596,2]
[311375601,1705069909443,-502.36,0.00025596,2]
[311375602,1705069909452,-516.86,0.00025596,2]
[311375603,1705069909461,-612.81,0.00025596,2]
[311375604,1705069909470,-500.0,0.00025596,2]
[311375605,1705069909480,-513.4,0.00025596,2]
[311375606,1705069909490,-500.0,0.00025596,2]
[311375607,1705069909501,-500.0,0.00025596,2]
[311375608,1705069909512,-202.24,0.00025596,2]
[311375609,1705069909521,-500.0,0.00025596,2]
[311375610,1705069909530,-504.92,0.00025596,2]
[311375611,1705069909539,-500.0,0.00025596,2]
[311375612,1705069909549,-500.0,0.00025596,2]
[311375613,1705069909560,-500.0,0.00025596,2]
[311375614,1705069909575,-500.0,0.00025596,2]
[311375615,1705069909585,-500.0,0.00025596,2]
[311375616,1705069909594,-500.0,0.00025596,2]
[311375617,1705069909603,-500.0,0.00025596,2]
[311375618,1705069909613,-605.75,0.00025596,2]
[311375619,1705069909623,-500.0,0.00025596,2]
[311375620,1705069909633,-500.0,0.00025596,2]
[311375621,1705069909642,-539.29,0.00025596,2]
[311375622,1705069909651,-585.54,0.00025596,2]
[311375623,1705069909662,-500.0,0.00025596,2]
[311375624,1705069909672,-500.25,0.00025596,2]
[311375625,1705069909681,-667.11,0.00025596,2]
[311375626,1705069909690,-503.41,0.00025596,2]
[311375627,1705069909700,-510.64,0.00025596,2]
[311375628,1705069909710,-502.72,0.00025596,2]
[311375629,1705069909719,-547.84,0.00025596,2]
[311375630,1705069909730,-500.0,0.00025596,2]
[311375631,1705069909739,-500.0,0.00025596,2]
[311375632,1705069909749,-166.73,0.00025596,2]
[311375633,1705069909760,-500.0,0.00025596,2]
[311375634,1705069909770,-500.0,0.00025596,2]
[311375635,1705069909779,-500.0,0.00025596,2]
[311375636,1705069909789,-500.0,0.00025596,2]
[311375637,1705069909799,-500.0,0.00025596,2]
[311375638,1705069909808,-759.5,0.00025596,2]
[311375639,1705069910012,-500.0,0.00025596,2]
[311375640,1705069910023,-594.48,0.00025596,2]
[311375641,1705069910034,-500.0,0.00025596,2]
[311375642,1705069910043,-526.9,0.00025596,2]
[311375643,1705069910054,-500.0,0.00025596,2]
[311375644,1705069910064,-828.68,0.00025596,2]
[311375645,1705069910074,-500.0,0.00025596,2]
[311375646,1705069910084,-500.0,0.00025596,2]
[311375647,1705069910093,-527.53,0.00025596,2]
[311375648,1705069910107,-1088.6,0.00025596,2]
[311375649,1705069910117,-1291.94,0.00025596,2]
[311375650,1705069910126,-500.0,0.00025596,2]
[311375651,1705069910137,-500.0,0.00025596,2]
[311375652,1705069910146,-810.7,0.00025596,2]
[311375653,1705069910156,-4607.32,0.00025596,2]
[311375654,1705069910165,-504.06,0.00025596,2]
[311375655,1705069910176,-500.0,0.00025596,2]
[311375656,1705069910186,-512.6,0.00025596,2]
[311375657,1705069910196,-500.0,0.00025596,2]
[311375658,1705069910206,-500.0,0.00025596,2]
[311375659,1705069910215,-2315.41,0.00025596,2]
[311375660,1705069910225,-500.0,0.00025596,2]
[311375661,1705069910235,-500.0,0.00025596,2]
[311375662,1705069910245,-1074.73,0.00025596,2]
[311375663,1705069910255,-1389.91,0.00025596,2]
[311375664,1705069910269,-500.0,0.00025596,2]
[311375665,1705069910278,-845.05,0.00025596,2]
[311375666,1705069910288,-888.54,0.00025596,2]
[311375667,1705069910297,-500.0,0.00025596,2]
[311375668,1705069910307,-1741.88,0.00025596,2]
[311375669,1705069910316,-228.2,0.00025596,2]
[311375670,1705069910326,-1065.09,0.00025596,2]
[311375671,1705069910336,-500.0,0.00025596,2]
[311375672,1705069910347,-500.0,0.00025596,2]
[311375673,1705069910357,-547.61,0.00025596,2]
[311375674,1705069910367,-866.87,0.00025596,2]
[311375675,1705069910377,-500.0,0.00025596,2]
[311375676,1705069910386,-500.0,0.00025596,2]
[311375677,1705069910397,-500.0,0.00025596,2]
[311375678,1705069910407,-500.0,0.00025596,2]
[311375679,1705069910417,-1887.65,0.00025596,2]
[311375680,1705069910427,-500.0,0.00025596,2]
[311375681,1705069910436,-500.0,0.00025596,2]
[311375682,1705069910445,-679.52,0.00025596,2]
[311375683,1705069910455,-978.52,0.00025596,2]
[311375684,1705069910464,-523.52,0.00025596,2]
[311375685,1705069910474,-538.5,0.00025596,2]
[311375686,1705069910484,-552.31,0.00025596,2]
[311375687,1705069910493,-1607.05,0.00025596,2]
[311375688,1705069910504,-625.78,0.00025596,2]
[311375689,1705069910517,-500.0,0.00025596,2]
[311375690,1705069910527,-1162.04,0.00025596,2]
[311375691,1705069910537,-3925.57,0.00025596,2]
[311375692,1705069910547,-6529.19,0.00025596,2]
[311375693,1705069910557,-1245.87,0.00025596,2]
[311375694,1705069910568,-500.0,0.00025596,2]
[311375695,1705069910578,-500.0,0.00025597,2]
[311375696,1705069910590,-500.0,0.00025597,2]
[311375697,1705069910599,-421.51,0.00025597,2]
[311375698,1705069910608,-502.5,0.00025597,2]
[311375699,1705069910618,-500.0,0.00025597,2]
[311375700,1705069910627,-500.0,0.00025597,2]
[311375701,1705069910636,-702.1,0.00025597,2]
[311375702,1705069910646,-500.0,0.00025597,2]
[311375703,1705069910656,-544.39,0.00025597,2]
[311375704,1705069910665,-672.68,0.00025597,2]
[311375705,1705069910675,-500.0,0.00025597,2]
[311375706,1705069910685,-500.0,0.00025597,2]
[311375707,1705069910695,-729.54,0.00025597,2]
[311375708,1705069910705,-500.0,0.00025597,2]
[311375709,1705069910714,-566.81,0.00025597,2]
[311375710,1705069910724,-500.0,0.00025597,2]
[311375711,1705069910733,-500.0,0.00025597,2]
[311375712,1705069910743,-668.25,0.00025597,2]
[311375713,1705069910753,-500.0,0.00025597,2]
[311375714,1705069910765,-695.69,0.00025597,2]
[311375715,1705069910775,-500.0,0.00025597,2]
[311375716,1705069910785,-551.12530833,0.00025597,2]
[311375717,1705069910795,-500.84,0.00025597,2]
[311375718,1705069910804,-693.65,0.00025597,2]
[311375719,1705069910814,-500.0,0.00025597,2]
[311375720,1705069910823,-738.92,0.00025597,2]
[311375721,1705069910833,-500.0,0.00025597,2]
[311375722,1705069910843,-818.71,0.00025597,2]
[311375723,1705069910853,-1260.63,0.00025597,2]
[311375724,1705069910863,-500.0,0.00025597,2]
[311375725,1705069910872,-997.12,0.00025597,2]
[311375726,1705069910882,-500.0,0.00025597,2]
[311375727,1705069910892,-791.08,0.00025597,2]
[311375728,1705069910902,-500.0,0.00025597,2]
[311375729,1705069910911,-583.49,0.00025597,2]
[311375730,1705069910921,-764.86,0.00025597,2]
[311375731,1705069910930,-500.0,0.00025597,2]
[311375732,1705069910940,-500.0,0.00025597,2]
[311375733,1705069910949,-500.0,0.00025597,2]
[311375734,1705069910958,-500.0,0.00025597,2]
[311375735,1705069910967,-500.0,0.00025597,2]
[311375736,1705069910977,-666.51,0.00025597,2]
[311375737,1705069910987,-500.0,0.00025597,2]
[311375738,1705069910996,-538.35,0.00025597,2]
[311375739,1705069911006,-778.72,0.00025597,2]
[311375740,1705069911018,-500.0,0.00025597,2]
[311375741,1705069911028,-500.0,0.00025597,2]
[311375742,1705069911037,-500.0,0.00025597,2]
[311375743,1705069911046,-500.0,0.00025597,2]
[311375744,1705069911056,-523.13,0.00025597,2]
[311375745,1705069911066,-500.0,0.00025597,2]
[311375746,1705069911075,-1386.41,0.00025597,2]
[311375747,1705069911085,-500.0,0.00025597,2]
[311375748,1705069911095,-913.03,0.00025597,2]
[311375749,1705069911105,-632.3,0.00025597,2]
[311375750,1705069911115,-500.0,0.00025597,2]
[311375751,1705069911125,-507.75,0.00025597,2]
[311375752,1705069911135,-713.86,0.00025597,2]
[311375753,1705069911144,-500.0,0.00025597,2]
[311375754,1705069911154,-565.93,0.00025597,2]
[311375755,1705069911163,-528.24,0.00025597,2]
[311375756,1705069911172,-1012.05,0.00025597,2]
[311375757,1705069911182,-2200.73,0.00025597,2]
[311375758,1705069911191,-500.0,0.00025597,2]
[311375759,1705069911201,-500.0,0.00025597,2]
[311375760,1705069911211,-574.28,0.00025597,2]
[311375761,1705069911221,-500.0,0.00025597,2]
[311375762,1705069911230,-610.82,0.00025597,2]
[311375763,1705069911240,-679.81,0.00025597,5]
[311375764,1705069911250,-560.5,0.00025597,2]
[311375765,1705069911259,-1995.08,0.00025597,2]
[311375766,1705069911273,-500.0,0.00025597,2]
[311375767,1705069911282,-1910.97,0.00025597,2]
[311375768,1705069911293,-500.0,0.00025597,2]
[311375769,1705069911302,-500.0,0.00025597,2]
[311375770,1705069911311,-500.0,0.00025597,2]
[311375771,1705069911320,-1099.3,0.00025597,2]
[311375772,1705069911329,-531.38,0.00025597,2]
[311375773,1705069911339,-500.0,0.00025597,2]
[311375774,1705069911349,-832.14,0.00025597,2]
[311375775,1705069911358,-871.05,0.00025597,2]
[311375776,1705069911368,-963.48,0.00025597,2]
[311375777,1705069911378,-500.0,0.00025597,2]
[311375778,1705069911387,-674.09,0.00025597,2]
[311375779,1705069911396,-500.0,0.00025597,2]
[311375780,1705069911406,-500.0,0.00025597,2]
[311375781,1705069911415,-673.94,0.00025597,2]
[311375782,1705069911424,-1270.12,0.00025597,2]
[311375783,1705069911434,-536.49,0.00025597,2]
[311375784,1705069911444,-694.97,0.00025597,2]
[311375785,1705069911454,-511.44,0.00025597,2]
[311375786,1705069911464,-500.0,0.00025597,2]
[311375787,1705069911474,-500.0,0.00025597,2]
[311375788,1705069911485,-500.0,0.00025597,2]
[311375789,1705069911495,-521.98,0.00025597,2]
[311375790,1705069911505,-592.85,0.00025597,2]
[311375791,1705069911517,-500.0,0.00025597,2]
[311375792,1705069911526,-511.22,0.00025597,2]
[311375793,1705069911535,-1245.3,0.00025597,2]
[311375794,1705069911544,-757.48,0.00025597,2]
[311375795,1705069911554,-715.96,0.00025597,2]
[311375796,1705069911563,-366.81,0.00025598,2]
[311375797,1705069911573,-500.0,0.00025598,2]
[311375798,1705069911583,-500.0,0.00025598,2]
[311375799,1705069911594,-500.0,0.00025598,2]
[311375800,1705069911603,-500.0,0.00025598,2]
[311375801,1705069911612,-500.0,0.00025598,2]
[311375802,1705069911622,-500.0,0.00025598,2]
[311375803,1705069911632,-386.2259881,0.00025598,2]
[311375804,1705069911641,-500.0,0.00025598,2]
[311375805,1705069911651,-500.0,0.00025598,2]
[311375806,1705069911662,-500.0,0.00025598,2]
[311375807,1705069911673,-500.0,0.00025598,2]
[311375808,1705069911683,-500.0,0.00025598,2]
[311375809,1705069911692,-500.0,0.00025598,2]
[311375810,1705069911702,-500.0,0.00025598,2]
[311375811,1705069911711,-500.0,0.00025598,2]
[311375812,1705069911720,-500.0,0.00025598,2]
[311375813,1705069911730,-559.6,0.00025598,2]
[311375814,1705069911740,-500.0,0.00025598,2]
[311375815,1705069911750,-569.65,0.00025598,2]
[311375816,1705069911760,-500.0,0.00025598,2]
[311375817,1705069911772,-500.0,0.00025598,2]
[311375818,1705069911781,-500.0,0.00025598,2]
[311375819,1705069911791,-500.0,0.00025598,2]
[311375820,1705069911801,-500.0,0.00025598,2]
[311375821,1705069911810,-500.0,0.00025598,2]
[311375822,1705069911820,-500.0,0.00025598,2]
[311375823,1705069911829,-500.0,0.00025598,2]
[311375824,1705069911838,-466.32,0.00025598,2]
[311375825,1705069911848,-497.36,0.00025598,2]
[311375826,1705069911857,-500.0,0.00025598,2]
[311375827,1705069911867,-500.0,0.00025598,2]
[311375828,1705069911877,-2064.59,0.00025598,2]
[311375829,1705069911886,-554.14,0.00025598,2]
[311375830,1705069911895,-555.49,0.00025598,2]
[311375831,1705069911905,-500.0,0.00025598,2]
[311375832,1705069911915,-2984.21,0.00025598,2]
[311375833,1705069911924,-500.0,0.00025598,2]
[311375834,1705069911932,-500.0,0.00025598,2]
[311375835,1705069911942,-500.0,0.00025598,2]
[311375836,1705069911951,-500.0,0.00025598,2]
[311375837,1705069911961,-500.0,0.00025598,2]
[311375838,1705069911970,-500.0,0.00025598,2]
[311375839,1705069911980,-500.0,0.00025598,2]
[311375840,1705069911989,-545.11,0.00025598,2]
[311375841,1705069911998,-500.0,0.00025598,2]
[311375842,1705069912008,-409.54,0.00025598,2]
[311375843,1705069912020,-500.0,0.00025599,2]
[311375844,1705069912029,-500.0,0.00025599,2]
[311375845,1705069912038,-500.0,0.00025599,2]
[311375846,1705069912047,-500.0,0.00025599,2]
[311375847,1705069912056,-500.0,0.00025599,2]
[311375848,1705069912065,-500.0,0.00025599,2]
[311375849,1705069912074,-560.86,0.00025599,2]
[311375850,1705069912083,-500.0,0.00025599,2]
[311375851,1705069912092,-500.0,0.00025599,2]
[311375852,1705069912102,-502.42,0.00025599,2]
[311375853,1705069912111,-500.0,0.00025599,2]
[311375854,1705069912120,-500.0,0.00025599,2]
[311375855,1705069912129,-881.21,0.00025599,2]
[311375856,1705069912138,-500.0,0.00025599,2]
[311375857,1705069912147,-535.59,0.00025599,2]
[311375858,1705069912157,-500.0,0.00025599,2]
[311375859,1705069912166,-514.86,0.00025599,2]
[311375860,1705069912175,-204.0,0.00025646,2]
[311375861,1705069912185,-629.62,0.00025738,2]
[311375862,1705069912194,-923.31,0.00025738,2]
[311375863,1705069912203,-537.36,0.00025738,2]
[311375864,1705069912212,-760.69,0.00025738,2]
[311375865,1705069912222,-500.0,0.00025738,2]
[311375866,1705069912231,-4615.76611416,0.00025747,2]
[311375867,1705069912240,-760.98,0.00025868,2]
[311375868,1705069912250,-1576.67,0.00025868,2]
[311375869,1705069912261,-1676.63,0.00025868,2]
[311375870,1705069912272,-1776.52,0.00025868,2]
[311375871,1705069912282,-1028.33,0.00025868,2]
[311375872,1705069912292,-903.76,0.00025868,2]
[311375873,1705069912303,-823.09,0.00025868,2]
[311375874,1705069912313,-500.0,0.00025868,2]
[311375875,1705069912323,-1992.9,0.00025868,2]
[311375876,1705069912332,-500.0,0.00025868,2]
[311375877,1705069912341,-1088.57,0.00025868,2]
[311375878,1705069912350,-592.52,0.00025868,2]
[311375879,1705069912359,-1069.49,0.00025868,2]
[311375880,1705069912369,-11473.02,0.00025868,2]
[311375881,1705069912380,-1045.86,0.00025868,2]
[311375882,1705069912389,-500.0,0.00025868,2]
[311375883,1705069912400,-693.02,0.00025868,2]
[311375884,1705069912410,-1530.26,0.00025868,2]
[311375885,1705069912420,-500.0,0.00025868,2]
[311375886,1705069912429,-773.0,0.00025868,2]
[311375887,1705069912438,-1161.03,0.00025868,2]
[311375888,1705069912447,-451.1,0.00025868,2]
[311375889,1705069912457,-500.0,0.00025868,2]
[311375890,1705069912467,-500.0,0.00025868,2]
[311375891,1705069912476,-3055.75,0.00025868,2]
[311375892,1705069912485,-996.78,0.00025869,2]
[311375893,1705069912495,-939.36,0.00025869,2]
[311375894,1705069912508,-535.32,0.00025869,2]
[311375895,1705069912520,-1978.54,0.00025869,2]
[311375896,1705069912530,-570.64,0.00025869,2]
[311375897,1705069912540,-10562.85,0.00025869,2]
[311375898,1705069912550,-6373.11,0.00025869,2]
[311375899,1705069912560,-749.0,0.00025869,2]
[311375900,1705069912571,-928.84,0.00025869,2]
[311375901,1705069912581,-536.68,0.00025869,2]
[311375902,1705069912592,-2087.57,0.00025869,2]
[311375903,1705069912602,-904.81,0.00025869,2]
[311375904,1705069912612,-889.19,0.00025869,2]
[311375905,1705069912622,-978.77,0.00025869,2]
[311375906,1705069912632,-712.93,0.00025869,2]
[311375907,1705069912641,-553.32,0.00025869,2]
[311375908,1705069912653,-1083.57,0.00025869,2]
[311375909,1705069912663,-5000.64,0.00025869,2]
[311375910,1705069912673,-1837.15,0.00025869,2]
[311375911,1705069912682,-592.75,0.00025869,2]
[311375912,1705069912691,-1063.77,0.00025869,2]
[311375913,1705069912704,-4397.81,0.00025869,2]
[311375914,1705069912714,-1384.9,0.00025869,2]
[311375915,1705069912725,-1749.07,0.00025869,2]
[311375916,1705069912735,-8501.24,0.00025869,2]
[311375917,1705069912746,-550.62,0.00025869,2]
[311375918,1705069912755,-500.0,0.00025869,2]
[311375919,1705069912770,-563.63,0.00025869,2]
[311375920,1705069912781,-2396.88,0.00025869,2]
[311375921,1705069912791,-947.32,0.00025869,2]
[311375922,1705069912800,-3427.97,0.00025869,2]
[311375923,1705069912810,-3063.47,0.00025869,2]
[311375924,1705069912820,-2388.38,0.00025869,2]
[311375925,1705069912830,-1809.41,0.00025869,2]
[311375926,1705069912841,-500.0,0.0002587,2]
[311375927,1705069912851,-502.36,0.0002587,2]
[311375928,1705069912861,-516.86,0.0002587,2]
[311375929,1705069912870,-612.81,0.0002587,2]
[311375930,1705069912880,-500.0,0.0002587,2]
[311375931,1705069912891,-513.4,0.0002587,2]
[311375932,1705069912901,-500.0,0.0002587,2]
[311375933,1705069912911,-500.0,0.0002587,2]
[311375934,1705069912920,-500.0,0.0002587,2]
[311375935,1705069912929,-504.92,0.0002587,2]
[311375936,1705069912939,-500.0,0.0002587,2]
[311375937,1705069912948,-500.0,0.0002587,2]
[311375938,1705069912958,-500.0,0.0002587,2]
[311375939,1705069912967,-500.0,0.0002587,2]
[311375940,1705069912976,-500.0,0.0002587,2]
[311375941,1705069912986,-500.0,0.0002587,2]
[311375942,1705069912995,-500.0,0.0002587,2]
[311375943,1705069913004,-605.75,0.0002587,2]
[311375944,1705069913017,-500.0,0.0002587,2]
[311375945,1705069913027,-500.0,0.0002587,2]
[311375946,1705069913036,-539.29,0.0002587,2]
[311375947,1705069913046,-585.54,0.0002587,2]
[311375948,1705069913055,-500.0,0.0002587,2]
[311375949,1705069913065,-500.25,0.0002587,2]
[311375950,1705069913074,-667.11,0.0002587,2]
[311375951,1705069913084,-503.41,0.0002587,2]
[311375952,1705069913266,-510.64,0.0002587,2]
[311375953,1705069913293,-502.72,0.0002587,2]
[311375954,1705069913303,-547.84,0.0002587,2]
[311375955,1705069913312,-500.0,0.0002587,2]
[311375956,1705069913322,-500.0,0.0002587,2]
[311375957,1705069913332,-166.73,0.0002587,2]
[311375958,1705069913341,-175.36,0.0002587,2]
[311375959,1705069913350,-500.0,0.0002587,2]
[311375960,1705069913360,-500.0,0.0002587,2]
[311375961,1705069913369,-500.0,0.0002587,2]
[311375962,1705069913378,-500.0,0.0002587,2]
[311375963,1705069913388,-759.5,0.0002587,2]
[311375964,1705069913398,-500.0,0.0002587,2]
[311375965,1705069913407,-594.48,0.0002587,2]
[311375966,1705069913417,-500.0,0.0002587,2]
[311375967,1705069913426,-526.9,0.0002587,2]
[311375968,1705069913436,-500.0,0.0002587,2]
[311375969,1705069913445,-828.68,0.0002587,2]
[311375970,1705069913454,-500.0,0.0002587,2]
[311375971,1705069913464,-500.0,0.0002587,2]
[311375972,1705069913473,-527.53,0.0002587,2]
[311375973,1705069913483,-1088.6,0.0002587,2]
[311375974,1705069913492,-1291.94,0.0002587,2]
[311375975,1705069913501,-500.0,0.0002587,2]
[311375976,1705069913510,-810.7,0.0002587,2]
[311375977,1705069913523,-4607.32,0.0002587,2]
[311375978,1705069913532,-504.06,0.0002587,2]
[311375979,1705069913541,-500.0,0.0002587,2]
[311375980,1705069913550,-512.6,0.0002587,2]
[311375981,1705069913560,-500.0,0.0002587,2]
[311375982,1705069913569,-335.3,0.0002587,2]
[311375983,1705069913579,-2315.41,0.0002587,2]
[311375984,1705069913588,-500.0,0.0002587,2]
[311375985,1705069913601,-500.0,0.0002587,2]
[311375986,1705069913611,-1074.73,0.0002587,2]
[311375987,1705069913620,-1389.91,0.0002587,2]
[311375988,1705069913629,-500.0,0.0002587,2]
[311375989,1705069913640,-845.05,0.0002587,2]
[311375990,1705069913649,-888.54,0.0002587,2]
[311375991,1705069913658,-500.0,0.0002587,2]
[311375992,1705069913668,-1741.88,0.0002587,2]
[311375993,1705069913679,-1065.09,0.0002587,2]
[311375994,1705069913690,-500.0,0.0002587,2]
[311375995,1705069913700,-500.0,0.0002587,2]
[311375996,1705069913709,-547.61,0.0002587,2]
[311375997,1705069913719,-866.87,0.0002587,2]
[311375998,1705069913729,-500.0,0.0002587,2]
[311375999,1705069913738,-500.0,0.0002587,2]
[311376000,1705069913748,-500.0,0.0002587,2]
[311376001,1705069913757,-500.0,0.0002587,2]
[311376002,1705069913771,-1887.65,0.0002587,2]
[311376003,1705069913781,-412.0,0.0002587,2]
[311376004,1705069913790,-500.0,0.0002587,2]
[311376005,1705069913800,-679.52,0.0002587,2]
[311376006,1705069913809,-978.52,0.0002587,2]
[311376007,1705069913819,-523.52,0.0002587,2]
[311376008,1705069913829,-538.5,0.0002587,2]
[311376009,1705069913838,-552.31,0.0002587,2]
[311376010,1705069913848,-1607.05,0.0002587,2]
[311376011,1705069913858,-625.78,0.0002587,2]
[311376012,1705069913867,-161.95,0.0002587,2]
[311376013,1705069913877,-1162.04,0.0002587,2]
[311376014,1705069913886,-3925.57,0.0002587,2]
[311376015,1705069913896,-6529.19,0.0002587,2]
[311376016,1705069913906,-436.84,0.0002587,2]
[311376017,1705069913915,-1245.87,0.0002587,2]
[311376018,1705069913925,-500.0,0.00025871,2]
[311376019,1705069913934,-309.66,0.00025871,2]
[311376020,1705069913944,-502.5,0.00025871,2]
[311376021,1705069913953,-500.0,0.00025871,2]
[311376022,1705069913964,-500.0,0.00025871,2]
[311376023,1705069913973,-702.1,0.00025871,2]
[311376024,1705069913983,-500.0,0.00025871,2]
[311376025,1705069913992,-544.39,0.00025871,2]
[311376026,1705069914003,-672.68,0.00025871,2]
[311376027,1705069914013,-500.0,0.00025871,2]
[311376028,1705069914023,-500.0,0.00025871,2]
[311376029,1705069914032,-729.54,0.00025871,2]
[311376030,1705069914042,-500.0,0.00025871,2]
[311376031,1705069914053,-566.81,0.00025871,2]
[311376032,1705069914063,-500.0,0.00025871,2]
[311376033,1705069914072,-500.0,0.00025871,2]
[311376034,1705069914081,-668.25,0.00025871,2]
[311376035,1705069914090,-500.0,0.00025871,2]
[311376036,1705069914100,-695.69,0.00025871,2]
[311376037,1705069914109,-500.0,0.00025871,2]
[311376038,1705069914118,-500.84,0.00025871,2]
[311376039,1705069914128,-693.65,0.00025871,2]
[311376040,1705069914137,-500.0,0.00025871,2]
[311376041,1705069914146,-738.92,0.00025871,2]
[311376042,1705069914155,-500.0,0.00025871,2]
[311376043,1705069914165,-818.71,0.00025871,2]
[311376044,1705069914174,-1260.63,0.00025871,2]
[311376045,1705069914183,-500.0,0.00025871,2]
[311376046,1705069914193,-997.12,0.00025871,2]
[311376047,1705069914202,-500.0,0.00025871,2]
[311376048,1705069914211,-791.08,0.00025871,2]
[311376049,1705069914221,-500.0,0.00025871,2]
[311376050,1705069914230,-583.49,0.00025871,2]
[311376051,1705069914240,-764.86,0.00025871,2]
[311376052,1705069914250,-500.0,0.00025871,2]
[311376053,1705069914259,-500.0,0.00025871,2]
[311376054,1705069914273,-500.0,0.00025871,2]
[311376055,1705069914282,-596.92725078,0.00025871,2]
[311376056,1705069914292,-500.0,0.00025871,2]
[311376057,1705069914301,-666.51,0.00025871,2]
[311376058,1705069914311,-500.0,0.00025871,2]
[311376059,1705069914321,-538.35,0.00025871,2]
[311376060,1705069914330,-778.72,0.00025871,2]
[311376061,1705069914340,-500.0,0.00025871,2]
[311376062,1705069914349,-500.0,0.00025871,2]
[311376063,1705069914359,-500.0,0.00025871,2]
[311376064,1705069914368,-500.0,0.00025871,2]
[311376065,1705069914377,-523.13,0.00025871,2]
[311376066,1705069914387,-500.0,0.00025871,2]
[311376067,1705069914397,-1386.41,0.00025871,2]
[311376068,1705069914407,-500.0,0.00025871,2]
[311376069,1705069914417,-913.03,0.00025871,2]
[311376070,1705069914427,-632.3,0.00025871,2]
[311376071,1705069914437,-500.0,0.00025871,2]
[311376072,1705069914447,-507.75,0.00025871,2]
[311376073,1705069914456,-713.86,0.00025871,2]
[311376074,1705069914466,-500.0,0.00025871,2]
[311376075,1705069914475,-565.93,0.00025871,2]
[311376076,1705069914485,-528.24,0.00025871,2]
[311376077,1705069914494,-1012.05,0.00025871,2]
[311376078,1705069914503,-2200.73,0.00025871,2]
[311376079,1705069914516,-500.0,0.00025871,2]
[311376080,1705069914526,-500.0,0.00025871,2]
[311376081,1705069914536,-574.28,0.00025871,2]
[311376082,1705069914545,-500.0,0.00025871,2]
[311376083,1705069914554,-610.82,0.00025871,2]
[311376084,1705069914564,-679.81,0.00025871,5]
[311376085,1705069914574,-560.5,0.00025871,2]
[311376086,1705069914585,-1995.08,0.00025871,2]
[311376087,1705069914595,-500.0,0.00025871,2]